[Event "Gibraltar Masters 18th"]
[Site "Gibraltar"]
[Date "2020.01.21"]
[Round "1.1"]
[White "Mullick, Raahil"]
[Black "Mamedyarov, Shakhriyar"]
[Result "0-1"]
[ECO "C60"]
[WhiteElo "2382"]
[BlackElo "2770"]
[PlyCount "92"]
[EventDate "2020.01.21"]
[EventType "swiss"]
[EventRounds "10"]
[EventCountry "GGB"]
[SourceTitle "BritBase"]
[Source "John Saunders"]
[SourceDate "2021.06.05"]
[SourceVersion "1"]
[SourceVersionDate "2021.06.05"]
[SourceQuality "1"]
[TimeControl "40/100:0"]
[WhiteClock "0:34:42"]
[BlackClock "1:20:09"]

1. e4 {[%emt 0:00:00]} e5 {[%emt 0:00:00]} 2. Nf3 {[%emt 0:00:00]} Nc6 {
[%emt 0:00:00]} 3. Bb5 {[%emt 0:00:00]} g6 {[%emt 0:00:00]} 4. O-O {[%emt 0:00:
00]} Bg7 {[%emt 0:00:00]} 5. c3 {[%emt 0:00:00]} a6 {[%emt 0:00:00]} 6. Ba4 {
[%emt 0:00:00]} Nge7 {[%emt 0:00:00]} 7. d4 {[%emt 0:00:00]} exd4 {[%emt 0:00:
00]} 8. cxd4 {[%emt 0:00:00]} b5 {[%emt 0:00:00]} 9. Bb3 {[%emt 0:00:00]} O-O {
[%emt 0:00:00]} 10. Nc3 {[%emt 0:00:00]} Na5 {[%emt 0:00:00]} 11. Bc2 {[%emt 0:
00:00]} d6 {[%emt 0:00:00]} 12. h3 {[%emt 0:00:00]} c5 {[%emt 0:00:00]} 13.
dxc5 {[%emt 0:00:00]} dxc5 {[%emt 0:00:00]} 14. Qxd8 {[%emt 0:00:00]} Rxd8 {
[%emt 0:00:00]} 15. Bg5 {[%emt 0:00:00]} Re8 {[%emt 0:00:00]} 16. Rad1 {
[%emt 0:00:00]} Be6 {[%emt 0:00:00]} 17. e5 {[%emt 0:00:00]} Nec6 {[%emt 0:00:
00]} 18. Ne4 {[%emt 0:00:00]} Nxe5 {[%emt 0:00:00]} 19. Nfd2 {[%emt 0:00:00]}
Rec8 {[%emt 0:00:00]} 20. Nd6 {[%emt 0:00:00]} Rc7 {[%emt 0:00:00]} 21. N2e4 {
[%emt 0:00:00]} Nd7 {[%emt 0:00:00]} 22. Bf4 {[%emt 0:00:00]} Rca7 {[%emt 0:00:
00]} 23. b3 {[%emt 0:00:00]} Nc6 {[%emt 0:00:00]} 24. Ng5 {[%emt 0:00:00]} Nd4
{[%emt 0:00:00]} 25. Nxe6 {[%emt 0:00:00]} fxe6 {[%emt 0:00:00]} 26. Bd3 {
[%emt 0:00:00]} Rf8 {[%emt 0:00:00]} 27. Bg3 {[%emt 0:00:00]} Be5 {[%emt 0:00:
00]} 28. Bxe5 {[%emt 0:00:00]} Nxe5 {[%emt 0:00:00]} 29. Bb1 {[%emt 0:00:42]}
Rd8 {[%emt 0:00:00]} 30. Ne4 {[%emt 0:00:00]} c4 {[%emt 0:00:00]} 31. bxc4 {
[%emt 0:00:23]} Nxc4 {[%emt 0:00:00]} 32. Bc2 {[%emt 0:00:03]} Kf7 {[%emt 0:00:
00]} 33. Bb3 {[%emt 0:00:00]} Ke7 {[%emt 0:00:00]} 34. Bxc4 {[%emt 0:00:00]}
bxc4 {[%emt 0:00:00]} 35. Nc3 {[%emt 0:00:00]} Rb7 {[%emt 0:00:00]} 36. Rb1 {
[%emt 0:00:01]} Rdb8 {[%emt 0:00:00]} 37. Rbd1 {[%emt 0:00:00]} Nb5 {[%emt 0:
00:00]} 38. Ne4 {[%emt 0:00:00]} c3 {[%emt 0:00:00]} 39. Nc5 {[%emt 0:00:00]}
Ra7 {[%emt 0:00:00]} 40. Rfe1 {[%emt 0:00:00]} Rb6 {[%emt 0:00:00]} 41. Rc1 {
[%emt 0:00:00]} Rc7 {[%emt 0:00:00]} 42. Nd3 {[%emt 0:00:00]} Rd6 {[%emt 0:00:
00]} 43. Nb4 {[%emt 0:00:00]} Rc4 {[%emt 0:00:00]} 44. Nc2 {[%emt 0:00:00]} Ra4
{[%emt 0:00:00]} 45. Ra1 {[%emt 0:00:00]} Rd2 {[%emt 0:00:00]} 46. Rec1 {
[%emt 0:00:00]} e5 {[%emt 0:00:00]} 0-1

[Event "Gibraltar Masters 18th"]
[Site "Gibraltar"]
[Date "2020.01.21"]
[Round "1.2"]
[White "Vachier-Lagrave, Maxime"]
[Black "Sukandar, Irine Kharisma"]
[Result "1-0"]
[ECO "B35"]
[WhiteElo "2770"]
[BlackElo "2402"]
[PlyCount "71"]
[EventDate "2020.01.21"]
[EventType "swiss"]
[EventRounds "10"]
[EventCountry "GGB"]
[SourceTitle "BritBase"]
[Source "John Saunders"]
[SourceDate "2021.06.05"]
[SourceVersion "1"]
[SourceVersionDate "2021.06.05"]
[SourceQuality "1"]
[TimeControl "40/100:0"]
[WhiteClock "0:14:25"]
[BlackClock "0:02:19"]

1. e4 {[%emt 0:00:00]} c5 {[%emt 0:00:00]} 2. Nf3 {[%emt 0:00:00]} Nc6 {
[%emt 0:00:00]} 3. Nc3 {[%emt 0:00:00]} g6 {[%emt 0:00:00]} 4. d4 {[%emt 0:00:
00]} cxd4 {[%emt 0:00:00]} 5. Nxd4 {[%emt 0:00:00]} Bg7 {[%emt 0:00:00]} 6. Be3
{[%emt 0:00:00]} Nf6 {[%emt 0:00:00]} 7. Bc4 {[%emt 0:00:00]} O-O {[%emt 0:00:
00]} 8. Bb3 {[%emt 0:00:00]} Re8 {[%emt 0:00:00]} 9. O-O {[%emt 0:00:00]} d6 {
[%emt 0:00:00]} 10. h3 {[%emt 0:00:00]} Na5 {[%emt 0:00:00]} 11. Qd2 {[%emt 0:
00:00]} a6 {[%emt 0:00:00]} 12. Bh6 {[%emt 0:00:00]} Bh8 {[%emt 0:00:00]} 13.
f4 {[%emt 0:00:00]} Nxb3 {[%emt 0:00:00]} 14. axb3 {[%emt 0:00:00]} Qb6 {
[%emt 0:00:00]} 15. e5 {[%emt 0:00:00]} Nh5 {[%emt 0:00:00]} 16. Qe3 {[%emt 0:
00:00]} Be6 {[%emt 0:00:00]} 17. g4 {[%emt 0:00:00]} Bg7 {[%emt 0:00:00]} 18.
Bxg7 {[%emt 0:00:00]} Nxg7 {[%emt 0:00:00]} 19. f5 {[%emt 0:00:00]} Bd7 {
[%emt 0:00:00]} 20. Nd5 {[%emt 0:00:00]} Qc5 {[%emt 0:00:00]} 21. c4 {[%emt 0:
00:00]} Bc6 {[%emt 0:00:00]} 22. b4 {[%emt 0:00:00]} Qa7 {[%emt 0:00:00]} 23.
e6 {[%emt 0:00:00]} Bxd5 {[%emt 0:00:00]} 24. cxd5 {[%emt 0:00:00]} f6 {
[%emt 0:00:00]} 25. g5 {[%emt 0:00:00]} gxf5 {[%emt 0:00:00]} 26. gxf6 {
[%emt 0:00:00]} exf6 {[%emt 0:00:00]} 27. Kh1 {[%emt 0:00:00]} Kh8 {[%emt 0:00:
00]} 28. Rac1 {[%emt 0:00:00]} Nh5 {[%emt 0:00:00]} 29. Rxf5 {[%emt 0:00:00]}
Ng3+ {[%emt 0:00:00]} 30. Qxg3 {[%emt 0:00:00]} Qxd4 {[%emt 0:00:00]} 31. Rc7 {
[%emt 0:00:00]} Qd1+ {[%emt 0:00:00]} 32. Kh2 {[%emt 0:00:00]} Qd2+ {[%emt 0:
00:00]} 33. Rf2 {[%emt 0:00:00]} Qh6 {[%emt 0:00:00]} 34. Qxd6 {[%emt 0:00:00]}
Rad8 {[%emt 0:00:00]} 35. Rd7 {[%emt 0:00:00]} Qh4 {[%emt 0:00:00]} 36. Rg2 {
[%emt 0:00:00]} 1-0

[Event "Gibraltar Masters 18th"]
[Site "Gibraltar"]
[Date "2020.01.21"]
[Round "1.3"]
[White "Percivaldi, Martin"]
[Black "Wang, Hao"]
[Result "0-1"]
[ECO "E09"]
[WhiteElo "2403"]
[BlackElo "2758"]
[PlyCount "72"]
[EventDate "2020.01.21"]
[EventType "swiss"]
[EventRounds "10"]
[EventCountry "GGB"]
[SourceTitle "BritBase"]
[Source "John Saunders"]
[SourceDate "2021.06.05"]
[SourceVersion "1"]
[SourceVersionDate "2021.06.05"]
[SourceQuality "1"]
[TimeControl "40/100:0"]
[WhiteClock "0:01:32"]
[BlackClock "0:01:54"]

1. d4 {[%emt 0:00:00]} d5 {[%emt 0:00:00]} 2. c4 {[%emt 0:00:00]} e6 {[%emt 0:
00:00]} 3. Nf3 {[%emt 0:00:00]} c6 {[%emt 0:00:00]} 4. Nbd2 {[%emt 0:00:00]}
Nf6 {[%emt 0:00:00]} 5. g3 {[%emt 0:00:00]} Be7 {[%emt 0:00:00]} 6. Bg2 {
[%emt 0:00:00]} O-O {[%emt 0:00:00]} 7. Qc2 {[%emt 0:00:00]} b6 {[%emt 0:00:00]
} 8. O-O {[%emt 0:00:00]} Bb7 {[%emt 0:00:00]} 9. e4 {[%emt 0:00:00]} dxc4 {
[%emt 0:00:00]} 10. Nxc4 {[%emt 0:00:00]} Nbd7 {[%emt 0:00:00]} 11. Rd1 {
[%emt 0:00:00]} c5 {[%emt 0:00:00]} 12. Nfe5 {[%emt 0:00:00]} cxd4 {[%emt 0:00:
00]} 13. Rxd4 {[%emt 0:00:00]} Qc7 {[%emt 0:00:00]} 14. Bf4 {[%emt 0:00:00]}
Nxe5 {[%emt 0:00:00]} 15. Bxe5 {[%emt 0:00:00]} Qc6 {[%emt 0:00:00]} 16. Qe2 {
[%emt 0:00:00]} Rad8 {[%emt 0:00:00]} 17. Rxd8 {[%emt 0:00:00]} Rxd8 {[%emt 0:
00:00]} 18. Bc3 {[%emt 0:00:00]} Ba6 {[%emt 0:00:00]} 19. b3 {[%emt 0:00:00]}
b5 {[%emt 0:00:00]} 20. Bxf6 {[%emt 0:00:00]} gxf6 {[%emt 0:00:00]} 21. Ne3 {
[%emt 0:00:00]} b4 {[%emt 0:00:00]} 22. Qg4+ {[%emt 0:00:00]} Kf8 {[%emt 0:00:
00]} 23. Qh5 {[%emt 0:00:00]} Qc3 {[%emt 0:00:00]} 24. Rb1 {[%emt 0:00:00]} Bc5
{[%emt 0:00:00]} 25. Ng4 {[%emt 0:00:00]} Qc2 {[%emt 0:00:00]} 26. Qh6+ {
[%emt 0:00:00]} Ke8 {[%emt 0:00:00]} 27. Rf1 {[%emt 0:00:00]} Bxf1 {[%emt 0:00:
00]} 28. Bxf1 {[%emt 0:00:00]} Rd1 {[%emt 0:00:00]} 29. Nxf6+ {[%emt 0:00:44]}
Ke7 {[%emt 0:00:44]} 30. Ng8+ {[%emt 0:00:00]} Ke8 {[%emt 0:00:01]} 31. Nf6+ {
[%emt 0:00:00]} Ke7 {[%emt 0:00:00]} 32. Ng8+ {[%emt 0:00:00]} Kd7 {[%emt 0:00:
10]} 33. Qf4 {[%emt 0:00:00]} Qd3 {[%emt 0:00:00]} 34. Qxf7+ {[%emt 0:00:00]}
Kd8 {[%emt 0:00:00]} 35. Qf6+ {[%emt 0:00:00]} Kc7 {[%emt 0:00:00]} 36. Qe5+ {
[%emt 0:00:00]} Kb7 {[%emt 0:00:00]} 0-1

[Event "Gibraltar Masters 18th"]
[Site "Gibraltar"]
[Date "2020.01.21"]
[Round "1.5"]
[White "Houska, Jovanka"]
[Black "Navara, David"]
[Result "0-1"]
[ECO "A46"]
[WhiteElo "2401"]
[BlackElo "2717"]
[PlyCount "122"]
[EventDate "2020.01.21"]
[EventType "swiss"]
[EventRounds "10"]
[EventCountry "GGB"]
[SourceTitle "BritBase"]
[Source "John Saunders"]
[SourceDate "2021.06.05"]
[SourceVersion "1"]
[SourceVersionDate "2021.06.05"]
[SourceQuality "1"]
[TimeControl "40/100:0"]
[WhiteClock "0:22:17"]
[BlackClock "1:01:51"]

1. d4 {[%emt 0:00:00]} Nf6 {[%emt 0:00:00]} 2. Nf3 {[%emt 0:00:00]} e6 {
[%emt 0:00:00]} 3. Bf4 {[%emt 0:00:00]} c5 {[%emt 0:00:00]} 4. e3 {[%emt 0:00:
00]} Qb6 {[%emt 0:00:00]} 5. Na3 {[%emt 0:00:00]} cxd4 {[%emt 0:00:00]} 6. Nb5
{[%emt 0:00:00]} Nd5 {[%emt 0:00:00]} 7. Qxd4 {[%emt 0:00:00]} Qxd4 {[%emt 0:
00:00]} 8. Nfxd4 {[%emt 0:00:00]} Nxf4 {[%emt 0:00:00]} 9. exf4 {[%emt 0:00:00]
} Bb4+ {[%emt 0:00:00]} 10. c3 {[%emt 0:00:00]} Ba5 {[%emt 0:00:00]} 11. Nd6+ {
[%emt 0:00:00]} Ke7 {[%emt 0:00:00]} 12. Nxc8+ {[%emt 0:00:00]} Rxc8 {[%emt 0:
00:00]} 13. Bd3 {[%emt 0:00:00]} Nc6 {[%emt 0:00:00]} 14. Nxc6+ {[%emt 0:00:00]
} bxc6 {[%emt 0:00:00]} 15. f5 {[%emt 0:00:00]} e5 {[%emt 0:00:00]} 16. Ke2 {
[%emt 0:00:00]} d5 {[%emt 0:00:00]} 17. b4 {[%emt 0:00:00]} Bd8 {[%emt 0:00:00]
} 18. Ba6 {[%emt 0:00:00]} Rc7 {[%emt 0:00:00]} 19. Rhd1 {[%emt 0:00:00]} Rb8 {
[%emt 0:00:00]} 20. f3 {[%emt 0:00:00]} Rb6 {[%emt 0:00:00]} 21. Bd3 {[%emt 0:
00:00]} c5 {[%emt 0:00:00]} 22. c4 {[%emt 0:00:00]} dxc4 {[%emt 0:00:00]} 23.
Bxc4 {[%emt 0:00:00]} Rxb4 {[%emt 0:00:00]} 24. Rac1 {[%emt 0:00:00]} Rb2+ {
[%emt 0:00:00]} 25. Rd2 {[%emt 0:00:00]} Rxd2+ {[%emt 0:00:00]} 26. Kxd2 {
[%emt 0:00:00]} Kf6 {[%emt 0:00:00]} 27. Bd3 {[%emt 0:00:00]} g6 {[%emt 0:00:
00]} 28. fxg6 {[%emt 0:00:00]} hxg6 {[%emt 0:00:00]} 29. Kc3 {[%emt 0:00:00]}
Kg5 {[%emt 0:00:00]} 30. Bb5 {[%emt 0:00:00]} f5 {[%emt 0:00:00]} 31. Rd1 {
[%emt 0:00:00]} Bf6 {[%emt 0:00:00]} 32. Kc4 {[%emt 0:00:20]} Rh7 {[%emt 0:00:
00]} 33. h3 {[%emt 0:00:00]} e4 {[%emt 0:00:00]} 34. fxe4 {[%emt 0:00:26]} fxe4
{[%emt 0:00:00]} 35. Kd5 {[%emt 0:00:10]} e3 {[%emt 0:00:00]} 36. Ke4 {[%emt 0:
00:02]} Bd4 {[%emt 0:00:00]} 37. Rf1 {[%emt 0:00:00]} Re7+ {[%emt 0:00:00]} 38.
Kd3 {[%emt 0:00:00]} Kh4 {[%emt 0:00:00]} 39. Ke2 {[%emt 0:00:00]} Kg3 {
[%emt 0:00:00]} 40. Bd3 {[%emt 0:00:00]} Re6 {[%emt 0:00:00]} 41. a4 {[%emt 0:
00:00]} Kxg2 {[%emt 0:00:00]} 42. a5 {[%emt 0:00:00]} g5 {[%emt 0:00:00]} 43.
Rf5 {[%emt 0:00:00]} Re5 {[%emt 0:00:00]} 44. Rxe5 {[%emt 0:00:00]} Bxe5 {
[%emt 0:00:00]} 45. Bf5 {[%emt 0:00:00]} Bd4 {[%emt 0:00:00]} 46. Be6 {[%emt 0:
00:00]} Kg3 {[%emt 0:00:00]} 47. a6 {[%emt 0:00:00]} Kg2 {[%emt 0:00:00]} 48.
Ke1 {[%emt 0:00:00]} Bc3+ {[%emt 0:00:00]} 49. Ke2 {[%emt 0:00:00]} Bd2 {
[%emt 0:00:00]} 50. Kd1 {[%emt 0:00:00]} Kg3 {[%emt 0:00:00]} 51. Ke2 {[%emt 0:
00:00]} Kf4 {[%emt 0:00:00]} 52. Bf7 {[%emt 0:00:00]} Ke4 {[%emt 0:00:00]} 53.
Kd1 {[%emt 0:00:00]} Kd4 {[%emt 0:00:00]} 54. Bg8 {[%emt 0:00:00]} c4 {[%emt 0:
00:00]} 55. Bf7 {[%emt 0:00:00]} c3 {[%emt 0:00:00]} 56. Bh5 {[%emt 0:00:00]}
Ke5 {[%emt 0:00:00]} 57. Bg6 {[%emt 0:00:00]} Kf4 {[%emt 0:00:00]} 58. Ke2 {
[%emt 0:00:00]} Kg3 {[%emt 0:00:00]} 59. Bf5 {[%emt 0:00:00]} Kg2 {[%emt 0:00:
00]} 60. Kd3 {[%emt 0:00:00]} Kf2 {[%emt 0:00:00]} 61. Bg4 {[%emt 0:00:00]} c2
{[%emt 0:00:00]} 0-1

[Event "Gibraltar Masters 18th"]
[Site "Gibraltar"]
[Date "2020.01.21"]
[Round "1.6"]
[White "Le, Quang Liem"]
[Black "Trent, Lawrence"]
[Result "1-0"]
[ECO "C78"]
[WhiteElo "2713"]
[BlackElo "2383"]
[PlyCount "81"]
[EventDate "2020.01.21"]
[EventType "swiss"]
[EventRounds "10"]
[EventCountry "GGB"]
[SourceTitle "BritBase"]
[Source "John Saunders"]
[SourceDate "2021.06.05"]
[SourceVersion "1"]
[SourceVersionDate "2021.06.05"]
[SourceQuality "1"]
[TimeControl "40/100:0"]
[WhiteClock "0:05:24"]
[BlackClock "0:01:16"]

1. e4 {[%emt 0:00:00]} e5 {[%emt 0:00:00]} 2. Nf3 {[%emt 0:00:00]} Nc6 {
[%emt 0:00:00]} 3. Bb5 {[%emt 0:00:00]} a6 {[%emt 0:00:00]} 4. Ba4 {[%emt 0:00:
00]} Nf6 {[%emt 0:00:00]} 5. O-O {[%emt 0:00:00]} Bc5 {[%emt 0:00:00]} 6. c3 {
[%emt 0:00:00]} O-O {[%emt 0:00:00]} 7. d4 {[%emt 0:00:00]} Ba7 {[%emt 0:00:00]
} 8. Re1 {[%emt 0:00:00]} d6 {[%emt 0:00:00]} 9. h3 {[%emt 0:00:00]} Bd7 {
[%emt 0:00:00]} 10. Be3 {[%emt 0:00:00]} Re8 {[%emt 0:00:00]} 11. Bc2 {[%emt 0:
00:00]} exd4 {[%emt 0:00:00]} 12. cxd4 {[%emt 0:00:00]} d5 {[%emt 0:00:00]} 13.
e5 {[%emt 0:00:00]} Ne4 {[%emt 0:00:00]} 14. Nc3 {[%emt 0:00:00]} Bf5 {[%emt 0:
00:00]} 15. a3 {[%emt 0:00:00]} Bg6 {[%emt 0:00:00]} 16. Qb1 {[%emt 0:00:00]}
Qd7 {[%emt 0:00:00]} 17. Nxe4 {[%emt 0:00:00]} dxe4 {[%emt 0:00:00]} 18. Bxe4 {
[%emt 0:00:00]} Nxd4 {[%emt 0:00:00]} 19. Bxd4 {[%emt 0:00:00]} Bxd4 {[%emt 0:
00:00]} 20. Re2 {[%emt 0:00:00]} Rad8 {[%emt 0:00:00]} 21. Bxg6 {[%emt 0:00:00]
} hxg6 {[%emt 0:00:00]} 22. Qe4 {[%emt 0:00:00]} c5 {[%emt 0:00:00]} 23. Rae1 {
[%emt 0:00:00]} b5 {[%emt 0:01:03]} 24. Qh4 {[%emt 0:00:00]} f6 {[%emt 0:00:00]
} 25. Qg3 {[%emt 0:00:00]} Kh7 {[%emt 0:00:00]} 26. Re4 {[%emt 0:00:00]} Qf5 {
[%emt 0:00:04]} 27. b4 {[%emt 0:00:00]} Bxe5 {[%emt 0:00:00]} 28. Nxe5 {
[%emt 0:00:00]} fxe5 {[%emt 0:00:00]} 29. Rxe5 {[%emt 0:00:00]} Rxe5 {[%emt 0:
00:00]} 30. Rxe5 {[%emt 0:00:00]} Qf6 {[%emt 0:00:01]} 31. Rxc5 {[%emt 0:00:00]
} Rd1+ {[%emt 0:00:00]} 32. Kh2 {[%emt 0:00:00]} Rd2 {[%emt 0:00:00]} 33. f3 {
[%emt 0:00:00]} Qd6 {[%emt 0:00:00]} 34. Re5 {[%emt 0:00:00]} Qf6 {[%emt 0:00:
00]} 35. Re3 {[%emt 0:00:00]} Rd4 {[%emt 0:00:00]} 36. Qb8 {[%emt 0:00:00]}
Qd6+ {[%emt 0:00:00]} 37. Qxd6 {[%emt 0:00:00]} Rxd6 {[%emt 0:00:00]} 38. h4 {
[%emt 0:00:00]} Rd4 {[%emt 0:00:00]} 39. Kg3 {[%emt 0:00:00]} a5 {[%emt 0:00:
00]} 40. Re4 {[%emt 0:00:00]} Rd3 {[%emt 0:00:00]} 41. a4 {[%emt 0:00:00]} 1-0

[Event "Gibraltar Masters 18th"]
[Site "Gibraltar"]
[Date "2020.01.21"]
[Round "1.7"]
[White "Lombaers, Peter"]
[Black "Alekseenko, Kirill"]
[Result "0-1"]
[ECO "E20"]
[WhiteElo "2383"]
[BlackElo "2704"]
[PlyCount "66"]
[EventDate "2020.01.21"]
[EventType "swiss"]
[EventRounds "10"]
[EventCountry "GGB"]
[SourceTitle "BritBase"]
[Source "John Saunders"]
[SourceDate "2021.06.05"]
[SourceVersion "1"]
[SourceVersionDate "2021.06.05"]
[SourceQuality "1"]
[TimeControl "40/100:0"]
[WhiteClock "0:05:04"]
[BlackClock "0:15:05"]

1. d4 {[%emt 0:00:00]} Nf6 {[%emt 0:00:00]} 2. c4 {[%emt 0:00:00]} e6 {[%emt 0:
00:00]} 3. Nc3 {[%emt 0:00:00]} Bb4 {[%emt 0:00:00]} 4. f3 {[%emt 0:00:00]} c5
{[%emt 0:00:00]} 5. d5 {[%emt 0:00:00]} d6 {[%emt 0:00:00]} 6. e4 {[%emt 0:00:
00]} b5 {[%emt 0:00:00]} 7. Bd2 {[%emt 0:00:00]} Bxc3 {[%emt 0:00:00]} 8. Bxc3
{[%emt 0:00:00]} b4 {[%emt 0:00:00]} 9. Bd2 {[%emt 0:00:00]} exd5 {[%emt 0:00:
00]} 10. cxd5 {[%emt 0:00:00]} O-O {[%emt 0:00:00]} 11. Be3 {[%emt 0:00:00]}
Nfd7 {[%emt 0:00:00]} 12. Ne2 {[%emt 0:00:00]} f5 {[%emt 0:00:00]} 13. Nf4 {
[%emt 0:00:00]} Ne5 {[%emt 0:00:00]} 14. Ne6 {[%emt 0:00:00]} Bxe6 {[%emt 0:00:
00]} 15. dxe6 {[%emt 0:00:00]} Nbc6 {[%emt 0:00:00]} 16. f4 {[%emt 0:00:00]}
Ng4 {[%emt 0:00:00]} 17. Bc4 {[%emt 0:00:00]} Qe7 {[%emt 0:00:00]} 18. Qf3 {
[%emt 0:00:00]} Nd4 {[%emt 0:00:00]} 19. Bxd4 {[%emt 0:00:00]} cxd4 {[%emt 0:
00:00]} 20. exf5 {[%emt 0:00:00]} Ne3 {[%emt 0:00:00]} 21. Bb3 {[%emt 0:00:00]}
a5 {[%emt 0:00:00]} 22. a3 {[%emt 0:00:00]} bxa3 {[%emt 0:00:00]} 23. Rxa3 {
[%emt 0:00:00]} d5 {[%emt 0:00:00]} 24. Kf2 {[%emt 0:00:00]} Rab8 {[%emt 0:00:
00]} 25. Re1 {[%emt 0:00:00]} a4 {[%emt 0:00:00]} 26. Bxd5 {[%emt 0:00:00]}
Qh4+ {[%emt 0:00:00]} 27. Qg3 {[%emt 0:00:00]} Qxg3+ {[%emt 0:00:00]} 28. Kxg3
{[%emt 0:00:00]} Nxd5 {[%emt 0:00:00]} 29. Rxa4 {[%emt 0:00:00]} Rb3+ {[%emt 0:
00:00]} 30. Kf2 {[%emt 0:00:00]} Rxb2+ {[%emt 0:00:00]} 31. Kf3 {[%emt 0:00:00]
} Rb3+ {[%emt 0:00:00]} 32. Kf2 {[%emt 0:00:00]} Nxf4 {[%emt 0:00:00]} 33. Rea1
{[%emt 0:00:00]} Nxe6 {[%emt 0:00:00]} 0-1

[Event "Gibraltar Masters 18th"]
[Site "Gibraltar"]
[Date "2020.01.21"]
[Round "1.9"]
[White "Hedman, Erik"]
[Black "Matlakov, Maxim"]
[Result "1/2-1/2"]
[ECO "D37"]
[WhiteElo "2376"]
[BlackElo "2698"]
[PlyCount "86"]
[EventDate "2020.01.21"]
[EventType "swiss"]
[EventRounds "10"]
[EventCountry "GGB"]
[SourceTitle "BritBase"]
[Source "John Saunders"]
[SourceDate "2021.06.05"]
[SourceVersion "1"]
[SourceVersionDate "2021.06.05"]
[SourceQuality "1"]
[TimeControl "40/100:0"]
[WhiteClock "0:26:45"]
[BlackClock "0:31:45"]

1. d4 {[%emt 0:00:00]} Nf6 {[%emt 0:00:00]} 2. c4 {[%emt 0:00:00]} e6 {[%emt 0:
00:00]} 3. Nf3 {[%emt 0:00:00]} a6 {[%emt 0:00:00]} 4. Nc3 {[%emt 0:00:00]} d5
{[%emt 0:00:00]} 5. cxd5 {[%emt 0:00:00]} exd5 {[%emt 0:00:00]} 6. Bg5 {
[%emt 0:00:00]} Be6 {[%emt 0:00:00]} 7. e3 {[%emt 0:00:00]} Nbd7 {[%emt 0:00:
00]} 8. Bd3 {[%emt 0:00:00]} Bd6 {[%emt 0:00:00]} 9. O-O {[%emt 0:00:00]} c6 {
[%emt 0:00:00]} 10. Qc2 {[%emt 0:00:00]} Qc7 {[%emt 0:00:00]} 11. Bf5 {[%emt 0:
00:00]} Bxf5 {[%emt 0:00:00]} 12. Qxf5 {[%emt 0:00:00]} O-O {[%emt 0:00:00]}
13. Bh4 {[%emt 0:00:00]} g6 {[%emt 0:00:00]} 14. Qh3 {[%emt 0:00:00]} Rfe8 {
[%emt 0:00:00]} 15. Rac1 {[%emt 0:00:00]} Kg7 {[%emt 0:00:00]} 16. Bg3 {
[%emt 0:00:00]} h6 {[%emt 0:00:00]} 17. Ne1 {[%emt 0:00:00]} Nb6 {[%emt 0:00:
00]} 18. Nd3 {[%emt 0:00:00]} Nc4 {[%emt 0:00:00]} 19. Rfe1 {[%emt 0:00:00]}
Bxg3 {[%emt 0:00:00]} 20. Qxg3 {[%emt 0:00:00]} Qe7 {[%emt 0:00:00]} 21. b3 {
[%emt 0:00:00]} Nd6 {[%emt 0:00:00]} 22. f3 {[%emt 0:00:00]} Rad8 {[%emt 0:00:
00]} 23. Qf2 {[%emt 0:00:00]} h5 {[%emt 0:00:00]} 24. h3 {[%emt 0:00:00]} Nb5 {
[%emt 0:00:00]} 25. Na4 {[%emt 0:00:00]} Nd7 {[%emt 0:00:00]} 26. g4 {[%emt 0:
00:00]} Rh8 {[%emt 0:00:00]} 27. Nf4 {[%emt 0:00:00]} Rde8 {[%emt 0:00:00]} 28.
Nb2 {[%emt 0:00:00]} Rh7 {[%emt 0:00:00]} 29. Kg2 {[%emt 0:00:00]} Reh8 {
[%emt 0:00:00]} 30. Rh1 {[%emt 0:00:00]} a5 {[%emt 0:00:00]} 31. gxh5 {[%emt 0:
00:00]} g5 {[%emt 0:00:00]} 32. Ne2 {[%emt 0:00:00]} Nd6 {[%emt 0:00:00]} 33.
Ng3 {[%emt 0:00:00]} Nf6 {[%emt 0:00:00]} 34. e4 {[%emt 0:00:00]} dxe4 {
[%emt 0:00:00]} 35. Nc4 {[%emt 0:00:00]} Kg8 {[%emt 0:00:17]} 36. Nxd6 {
[%emt 0:00:00]} Qxd6 {[%emt 0:00:00]} 37. fxe4 {[%emt 0:00:00]} Nxh5 {[%emt 0:
00:00]} 38. Nxh5 {[%emt 0:00:00]} Rxh5 {[%emt 0:00:00]} 39. Rc5 {[%emt 0:00:00]
} Kg7 {[%emt 0:00:45]} 40. Rxa5 {[%emt 0:00:19]} b5 {[%emt 0:00:00]} 41. Ra7 {
[%emt 0:02:28]} Qe6 {[%emt 0:00:00]} 42. Qe3 {[%emt 0:00:00]} Kg6 {[%emt 0:00:
00]} 43. Ra6 {[%emt 0:00:00]} Rh4 {[%emt 0:10:56]} 1/2-1/2

[Event "Gibraltar Masters 18th"]
[Site "Gibraltar"]
[Date "2020.01.21"]
[Round "1.11"]
[White "Ioannidis, Evgenios"]
[Black "Cheparinov, Ivan"]
[Result "0-1"]
[ECO "D85"]
[WhiteElo "2373"]
[BlackElo "2686"]
[PlyCount "36"]
[EventDate "2020.01.21"]
[EventType "swiss"]
[EventRounds "10"]
[EventCountry "GGB"]
[SourceTitle "BritBase"]
[Source "John Saunders"]
[SourceDate "2021.06.05"]
[SourceVersion "1"]
[SourceVersionDate "2021.06.05"]
[SourceQuality "1"]
[TimeControl "40/100:0"]
[WhiteClock "0:12:22"]
[BlackClock "1:06:26"]

1. d4 {[%emt 0:00:00]} Nf6 {[%emt 0:00:00]} 2. c4 {[%emt 0:00:00]} g6 {[%emt 0:
00:00]} 3. Nc3 {[%emt 0:00:00]} d5 {[%emt 0:00:00]} 4. cxd5 {[%emt 0:00:00]}
Nxd5 {[%emt 0:00:00]} 5. e4 {[%emt 0:00:00]} Nxc3 {[%emt 0:00:00]} 6. bxc3 {
[%emt 0:00:00]} Bg7 {[%emt 0:00:00]} 7. Qa4+ {[%emt 0:00:00]} Nd7 {[%emt 0:00:
00]} 8. Nf3 {[%emt 0:00:00]} O-O {[%emt 0:00:00]} 9. Qa3 {[%emt 0:00:00]} c5 {
[%emt 0:00:00]} 10. Be2 {[%emt 0:00:00]} b6 {[%emt 0:00:00]} 11. e5 {[%emt 0:
00:00]} Bb7 {[%emt 0:00:00]} 12. h4 {[%emt 0:00:00]} b5 {[%emt 0:00:00]} 13.
Bxb5 {[%emt 0:00:00]} Rb8 {[%emt 0:00:00]} 14. Qa4 {[%emt 0:00:00]} Nb6 {
[%emt 0:00:00]} 15. Qd1 {[%emt 0:00:00]} Bxf3 {[%emt 0:00:00]} 16. Qxf3 {
[%emt 0:00:00]} cxd4 {[%emt 0:00:00]} 17. c4 {[%emt 0:00:00]} Qc7 {[%emt 0:00:
00]} 18. e6 {[%emt 0:00:00]} Nxc4 {[%emt 0:00:00]} 0-1